bitfinex-derivatives/quotes_ETHF0:USTF0_20230701
["timestamp","ask_amount","ask_price","bid_price","bid_amount"]
[1688176183247,3.62953859,1931.1,1931.0,4.639]
[1688176183444,3.94035859,1931.1,1931.0,4.94984]
[1688176185344,3.62953859,1931.1,1931.0,4.94984]
[1688176185542,3.94035859,1931.1,1931.0,4.94984]
[1688176186435,3.52202233,1931.1,1931.0,4.94984]
[1688176186740,3.52203233,1931.1,1931.0,4.94984]
[1688176186939,3.21121233,1931.1,1931.0,4.94984]
[1688176187140,3.52203233,1931.1,1931.0,4.94984]
[1688176187348,3.21121233,1931.1,1931.0,4.94984]
[1688176189248,0.00341233,1931.1,1931.0,4.94984]
[1688176189450,0.00341233,1931.1,1931.0,8.26164]
[1688176189649,8.0409,1931.5,1931.0,13.51434]
[1688176189849,8.35165,1931.5,1931.4,4.639]
[1688176190045,8.75645762,1931.5,1931.4,4.92571635]
[1688176190744,8.7598731,1931.5,1931.4,4.92571635]
[1688176191246,8.7598731,1931.5,1931.4,4.639]
[1688176191440,8.7598731,1931.5,1931.4,4.92571635]
[1688176194957,8.7598731,1931.5,1931.4,4.639]
[1688176196258,8.7598731,1931.5,1931.4,4.92571635]
[1688176196957,13.4188731,1931.5,1931.4,0.28671635]
[1688176197161,13.4188731,1931.5,1931.3,0.31078]
[1688176197760,13.4188731,1931.5,1931.3,0.59749635]
[1688176199558,3.6160231,1931.5,1931.4,5.33948412]
[1688176199761,3.6160231,1931.5,1931.4,5.65024412]
[1688176199964,3.72758872,1931.5,1931.4,5.65024412]
[1688176201569,3.72758872,1931.5,1931.4,5.65023412]
[1688176201764,3.72758872,1931.5,1931.4,5.65022412]
[1688176202574,3.72758872,1931.5,1931.4,5.33948412]
[1688176202769,3.72758872,1931.5,1931.4,5.65024412]
[1688176202960,3.72758872,1931.5,1931.4,5.33948412]
[1688176203165,0.51978872,1931.5,1931.4,5.65024412]
[1688176203367,0.51978872,1931.5,1931.4,5.33948412]
[1688176203569,0.51978872,1931.5,1931.4,4.668]
[1688176203767,0.83052872,1931.5,1931.4,4.668]
[1688176204075,0.83052872,1931.5,1931.3,5.34155206]
[1688176204773,0.83052872,1931.5,1931.3,5.65233206]
[1688176204976,5.79192872,1931.5,1931.3,5.65233206]
[1688176205966,5.6803631,1931.5,1931.4,0.06723384]
[1688176206273,5.6803631,1931.5,1931.3,5.65233206]
[1688176206679,5.6803631,1931.5,1931.4,0.06720908]
[1688176206969,5.6803631,1931.5,1931.3,5.65233206]
[1688176207571,5.6803631,1931.5,1931.4,0.0671829]
[1688176207771,5.6803631,1931.5,1931.3,5.65233206]
[1688176208172,5.6803631,1931.5,1931.4,0.06715901]
[1688176208669,5.6803631,1931.5,1931.3,5.65233206]
[1688176209063,5.6803631,1931.5,1931.4,0.06713201]
[1688176209469,5.6803631,1931.5,1931.3,5.65233206]
[1688176209969,5.6803631,1931.5,1931.4,0.0655638]
[1688176210170,5.6803631,1931.5,1931.4,4.639]
[1688176211165,5.6803631,1931.5,1931.4,5.20648412]
[1688176212079,5.6803631,1931.5,1931.4,5.22848412]
[1688176212480,5.6803631,1931.5,1931.4,4.661]
[1688176214685,5.6803631,1931.5,1931.4,4.97176]
[1688176216288,5.6803631,1931.5,1931.4,4.661]
[1688176217177,5.6803631,1931.5,1931.4,4.97177]
[1688176221289,0.4082231,1931.5,1931.4,4.97177]
[1688176223589,0.4082231,1931.5,1931.4,4.661]
[1688176224892,0.7189731,1931.5,1931.4,4.661]
[1688176236500,0.7189731,1931.5,1931.4,4.97177]
[1688176237109,0.7189731,1931.5,1931.4,4.661]
[1688176237311,8.5867731,1931.5,1931.3,5.07683571]
[1688176237604,8.5867731,1931.5,1931.4,0.06461542]
[1688176237904,8.5867731,1931.5,1931.3,5.38761571]
[1688176238112,8.5867731,1931.5,1931.4,0.06459824]
[1688176238612,8.5867731,1931.5,1931.3,5.38761571]
[1688176239106,8.5867731,1931.5,1931.4,0.06457272]
[1688176239410,8.5867731,1931.5,1931.3,5.38761571]
[1688176239607,8.5867731,1931.5,1931.4,0.06454722]
[1688176239913,8.5867731,1931.5,1931.3,5.38761571]
[1688176240110,8.5867731,1931.5,1931.4,0.06453017]
[1688176240510,8.5867731,1931.5,1931.3,5.38761571]
[1688176241110,0.41304377,1931.4,1931.3,5.38761571]
[1688176241307,0.10227377,1931.4,1931.3,5.38761571]
[1688176241613,0.41304377,1931.4,1931.3,5.38761571]
[1688176241811,0.41653503,1931.4,1931.3,5.07683571]
[1688176244511,0.41653503,1931.4,1931.3,5.38761571]
[1688176246813,0.41653503,1931.4,1931.3,5.07683571]
[1688176247514,0.41653503,1931.4,1931.3,5.38761571]
[1688176248314,0.41653503,1931.4,1931.3,5.07683571]
[1688176248515,0.41653503,1931.4,1931.3,4.661]
[1688176248710,0.31426126,1931.4,1931.3,4.661]
[1688176252116,4.97426126,1931.4,1931.2,0.72899865]
[1688176252310,3.2078,1931.3,1931.2,0.72899865]
[1688176252510,3.51858,1931.3,1931.2,0.72899865]
[1688176252718,4.4501476,1931.3,1931.2,0.72899865]
[1688176255218,4.4501476,1931.3,1931.2,0.41819865]
[1688176255709,4.4501476,1931.3,1931.1,10.19982]
[1688176256315,4.4501476,1931.3,1931.1,4.661]
[1688176257921,4.4501476,1931.3,1931.1,4.97182]
[1688176258121,4.4501476,1931.3,1931.1,4.661]
[1688176258316,4.4501476,1931.3,1931.1,4.97182]
[1688176258721,4.4501476,1931.3,1931.1,5.38618802]
[1688176258916,4.4501476,1931.3,1931.1,5.67290437]
[1688176262216,4.4501476,1931.3,1931.1,5.38618802]
[1688176263422,4.85541333,1931.3,1931.1,5.38618802]
[1688176265425,4.85541333,1931.3,1931.1,5.67290437]
[1688176269828,4.54463333,1931.3,1931.1,5.67290437]
[1688176270127,4.85542333,1931.3,1931.1,6.24038849]
[1688176271530,4.85542333,1931.3,1931.1,5.67290437]
[1688176277652,4.54463333,1931.3,1931.1,5.67290437]
[1688176277945,4.85541333,1931.3,1931.1,5.67290437]
[1688176280040,4.85541333,1931.3,1931.1,5.38618802]
[1688176282149,9.51441333,1931.3,1931.1,5.38618802]
[1688176284259,9.51441333,1931.3,1931.2,0.28671635]
[1688176284457,9.51441333,1931.3,1931.2,0.3108]
[1688176301269,9.50541333,1931.3,1931.1,0.41436802]
[1688176301477,5.0,1931.0,1930.5,0.77718]
[1688176301766,0.41291,1930.5,1930.0,4.623]
[1688176301973,0.31095,1930.3,1930.2,0.31096]
[1688176302178,8.18675,1930.3,1930.0,0.77743]
[1688176302362,8.18675,1930.3,1930.1,0.31097]
[1688176303063,8.18675,1930.3,1930.0,0.00777122]
[1688176303262,3.51877,1930.1,1930.0,0.31876122]
[1688176303868,0.31097,1930.1,1930.0,0.31876122]
[1688176304175,0.31097,1930.1,1930.0,0.60547757]
[1688176307070,0.77744,1930.2,1930.0,5.27347757]
[1688176307371,10.84051542,1930.4,1930.0,5.27347757]
[1688176307372,1.24681542,1930.4,1930.1,5.65046412]
[1688176307674,0.00777122,1930.4,1930.3,4.94994]
[1688176307877,0.00777122,1930.4,1930.3,5.51742412]
[1688176308069,0.00777122,1930.4,1930.3,5.73240105]
[1688176309671,0.31869122,1930.4,1930.3,5.73240105]
[1688176310074,0.00777122,1930.4,1930.3,5.73240105]
[1688176313680,0.01122113,1930.4,1930.3,5.73240105]
[1688176322285,0.01122113,1930.4,1930.3,6.1394293]
[1688176330380,0.01122113,1930.4,1930.3,6.2434293]
[1688176330681,0.01122113,1930.4,1930.3,9.39174255]
[1688176331790,0.01122113,1930.4,1930.3,14.05974255]
[1688176332190,0.01122113,1930.4,1930.3,13.95574255]
[1688176333789,0.01122113,1930.4,1930.3,9.31674255]
[1688176334183,0.01122113,1930.4,1930.3,14.27874255]
[1688176336795,0.01122113,1930.4,1930.3,18.90874255]
[1688176337196,0.9280742,1930.8,1930.3,19.01274255]
[1688176337396,9.9165,1931.0,1930.7,7.8758]
[1688176337599,3.2078,1931.1,1930.9,4.661]
[1688176337896,3.2078,1931.1,1931.0,0.31083]
[1688176338096,3.2078,1931.1,1931.0,1.16503047]
[1688176342103,3.2078,1931.1,1931.0,5.80403047]
[1688176344402,3.51862,1931.1,1930.9,4.623]
[1688176344608,3.51862,1931.1,1931.0,0.31083]
[1688176345807,3.52181352,1931.1,1931.0,0.31083]
[1688176351210,3.21099352,1931.1,1931.0,0.59754635]
[1688176352116,3.21099352,1931.1,1931.0,5.26554635]
[1688176361616,0.00319352,1931.1,1931.0,5.26554635]
[1688176368322,0.00319352,1931.1,1931.0,5.18748463]
[1688176368526,0.00319352,1931.1,1931.0,4.90076828]
[1688176368726,0.00319352,1931.1,1931.0,5.18748463]
[1688176374327,0.00319352,1931.1,1931.0,4.90076828]
[1688176374724,0.00319352,1931.1,1931.0,5.18748463]
[1688176383141,0.00319352,1931.1,1931.0,4.90076828]
[1688176384538,0.00319352,1931.1,1931.0,5.18748463]
[1688176386737,0.9280742,1931.3,1931.0,5.18748463]
[1688176386935,10.64088241,1931.5,1931.2,4.668]
[1688176386936,10.95164241,1931.5,1931.2,4.668]
[1688176387133,21.16554241,1931.5,1931.3,5.23649635]
[1688176387438,0.9280742,1931.4,1931.3,5.23649635]
[1688176387943,0.0032203,1931.4,1931.3,5.23649635]
[1688176388439,0.0032203,1931.4,1931.3,0.59749635]
[1688176388640,0.9312945,1931.4,1931.3,0.59749635]
[1688176388936,1.2420645,1931.4,1931.3,0.31078]
[1688176391341,5.9100645,1931.4,1931.3,0.31078]
[1688176392339,5.9100645,1931.4,1931.2,0.78473659]
[1688176392645,3.2078,1931.3,1931.2,0.78473659]
[1688176392842,3.51858,1931.3,1931.2,0.31855659]
[1688176393743,3.52179075,1931.3,1931.2,0.31855659]
[1688176395339,8.18079075,1931.3,1931.2,0.31855659]
[1688176395544,8.18079075,1931.3,1931.1,0.93235]
[1688176395748,3.52179075,1931.3,1931.2,0.4112774]
[1688176396043,13.18079075,1931.3,1930.8,0.31082]
[1688176396233,4.96985,1930.9,1930.8,0.31082]
[1688176396436,8.17765,1930.9,1930.8,0.31082]
[1688176397848,8.17765,1930.9,1930.8,0.43669311]
[1688176398145,8.17765,1930.9,1930.8,0.84734063]
[1688176403854,8.1808509,1930.9,1930.8,0.84734063]
[1688176408656,8.59515251,1930.9,1930.8,0.84734063]
[1688176412763,8.59515251,1930.9,1930.8,0.53652063]
[1688176412963,9.52322671,1930.9,1930.8,0.53652063]
[1688176413168,9.52322671,1930.9,1930.8,0.12587311]
[1688176433775,5.0,1930.8,1930.5,0.31089]
[1688176433977,7.8578,1930.6,1930.5,0.31089]
[1688176434176,8.16868,1930.6,1930.5,0.31089]
[1688176434783,8.17188888,1930.6,1930.5,0.31089]
[1688176438887,3.21100888,1930.6,1930.5,0.59760635]
[1688176439278,3.21100888,1930.6,1930.5,5.22060635]
[1688176439279,0.00320888,1930.6,1930.5,5.22060635]
[1688176439583,9.20917581,1930.9,1930.6,0.56748412]
[1688176439584,8.28110161,1930.9,1930.6,0.56748412]
[1688176439780,8.28110161,1930.9,1930.7,0.59757635]
[1688176440788,8.59193161,1930.9,1930.7,0.59757635]
[1688176441386,8.59193161,1930.9,1930.8,0.06783829]
[1688176441588,8.59193161,1930.9,1930.8,0.37868829]
[1688176443987,8.28110161,1930.9,1930.8,1.23288876]
[1688176444490,8.29010161,1930.9,1930.8,1.23288876]
[1688176444692,0.41430161,1930.9,1930.8,5.89388876]
[1688176444887,0.00776115,1931.0,1930.8,9.10168876]
[1688176445080,0.00776115,1931.0,1930.8,9.03385047]
[1688176446390,0.43158479,1931.0,1930.8,9.03385047]
[1688176446588,0.00776115,1931.0,1930.8,9.03385047]
[1688176447888,0.00307748,1930.9,1930.8,9.03385047]
[1688176451594,0.00307748,1930.9,1930.8,5.53933412]
[1688176451790,0.00307748,1930.9,1930.8,5.82605047]
[1688176451992,0.00307748,1930.9,1930.8,0.31085]
[1688176454194,4.67107748,1930.9,1930.8,0.31085]
[1688176454394,4.98191748,1930.9,1930.8,0.31085]
[1688176454801,5.90999168,1930.9,1930.8,0.31085]
[1688176455198,5.90999168,1930.9,1930.8,0.71847813]
[1688176455395,5.90999168,1930.9,1930.8,0.31085]
[1688176456598,10.90999168,1930.9,1930.7,0.31086]
[1688176456899,8.18665,1930.8,1930.7,0.31086]
[1688176457205,8.18665,1930.8,1930.6,5.92797]
[1688176457502,4.668,1930.7,1930.6,5.92797]
[1688176457797,4.98195486,1930.7,1930.6,5.92797]
[1688176458804,4.98195486,1930.7,1930.6,1.18807274]
[1688176463211,4.98194486,1930.7,1930.6,1.18807274]
[1688176463414,4.67108486,1930.7,1930.6,1.18807274]
[1688176463707,4.67108486,1930.7,1930.6,1.47478909]
[1688176466711,4.66208486,1930.7,1930.6,1.47478909]
[1688176469518,5.07700566,1930.7,1930.6,1.47478909]
[1688176470422,0.41800566,1930.7,1930.6,6.13578909]
[1688176470715,0.00308486,1930.7,1930.6,6.13578909]
[1688176471917,13.62643535,1931.0,1930.6,6.13578909]
[1688176472117,18.28543535,1931.0,1930.7,4.623]
[1688176472321,0.9280742,1930.9,1930.8,0.59756635]
[1688176472819,0.93116493,1930.9,1930.8,0.59756635]
[1688176480920,0.93116493,1930.9,1930.8,0.31085]
[1688176482232,5.59116493,1930.9,1930.8,0.31085]
[1688176487732,5.90199493,1930.9,1930.8,0.31085]
[1688176488633,5.90199493,1930.9,1930.8,0.38603443]
[1688176488826,5.59116493,1930.9,1930.8,0.38603443]
[1688176489026,5.90199493,1930.9,1930.8,0.38603443]
[1688176489736,5.59116493,1930.9,1930.8,0.38603443]
[1688176491430,5.59116493,1930.9,1930.8,0.67275078]
[1688176491733,5.59116493,1930.9,1930.8,0.59756635]
[1688176492034,0.93116493,1930.9,1930.8,0.59756635]
[1688176498636,0.93116493,1930.9,1930.8,0.31085]
[1688176502038,5.59916493,1930.9,1930.8,0.31085]
[1688176502242,5.59916493,1930.9,1930.6,0.41090274]
[1688176502243,5.0,1930.7,1930.6,0.41090274]
[1688176502540,5.0,1930.7,1930.4,0.31867981]
[1688176502541,13.17866,1930.7,1930.4,0.31867981]
[1688176502741,7.8758,1930.5,1930.4,0.00776981]
[1688176502944,9.1147742,1930.5,1930.4,0.00776981]
[1688176503834,14.11782392,1930.5,1930.0,0.31095]
[1688176504039,7.8678,1930.1,1930.0,0.31095]
[1688176504239,8.17877,1930.1,1930.0,0.31095]
[1688176504943,8.18179076,1930.1,1930.0,0.31095]
[1688176510443,8.18179076,1930.1,1929.9,0.73363748]
[1688176510650,4.96999,1930.0,1929.9,0.73363748]
[1688176510845,4.97300937,1930.0,1929.9,0.73363748]
[1688176514964,4.66201937,1930.0,1929.9,1.02035383]
[1688176515250,4.65301937,1930.0,1929.9,1.02035383]
[1688176517750,4.65301937,1930.0,1929.9,1.28410429]
[1688176522057,0.00301937,1930.0,1929.9,1.28410429]
[1688176526260,0.00301937,1930.0,1929.9,0.86923863]
[1688176527356,0.00301937,1930.0,1929.9,0.97323863]
[1688176527561,0.00301937,1930.0,1929.9,5.64123863]
[1688176527860,4.7907,1930.4,1929.9,5.57177868]
[1688176528056,4.7907,1930.4,1930.2,4.668]
[1688176528363,5.7187742,1930.4,1930.3,0.50487071]
[1688176529066,5.72181393,1930.4,1930.3,0.50487071]
[1688176529361,0.93111393,1930.4,1930.3,0.50487071]
[1688176529664,0.00303973,1930.4,1930.3,0.50487071]
[1688176529869,0.42506813,1930.4,1930.3,0.50487071]
[1688176530171,0.00303973,1930.4,1930.3,0.50487071]
[1688176530873,0.00303973,1930.4,1930.3,5.24787071]
[1688176531876,4.66,1930.6,1930.3,5.24787071]
[1688176532176,8.17767,1930.7,1930.5,0.3109]
[1688176532766,0.00393584,1930.6,1930.5,0.3109]
[1688176532968,4.97382584,1930.6,1930.5,0.3109]
[1688176533968,4.97382584,1930.6,1930.4,0.31089]
[1688176534176,8.17768,1930.5,1930.4,0.31089]
[1688176534979,8.18160479,1930.5,1930.4,0.31089]
[1688176539785,8.18160479,1930.5,1930.3,0.93272]
[1688176539974,4.659,1930.4,1930.3,0.93272]
[1688176540286,4.96993,1930.4,1930.3,0.93272]
[1688176540883,4.97385846,1930.4,1930.3,0.93272]
[1688176546090,4.66292846,1930.4,1930.3,1.21943635]
[1688176547791,4.97385846,1930.4,1930.3,1.05269412]
[1688176548687,4.66292846,1930.4,1930.3,1.90689459]
[1688176552097,0.00392846,1930.4,1930.3,6.54589459]
[1688176555703,0.00392846,1930.4,1930.3,6.63389459]
[1688176556108,0.00392846,1930.4,1930.3,16.52992047]
[1688176556798,5.06939187,1930.7,1930.3,16.52992047]
[1688176557106,5.38027187,1930.7,1930.5,0.31091]
[1688176557298,8.58807187,1930.7,1930.5,0.31091]
[1688176557498,9.51614607,1930.7,1930.5,0.31091]
[1688176557900,0.00392859,1930.6,1930.5,0.31091]
[1688176558206,4.97482859,1930.6,1930.5,0.31091]
[1688176561016,4.97482859,1930.6,1930.3,0.93272]
[1688176561216,4.66,1930.4,1930.3,0.93272]
[1688176561405,4.97093,1930.4,1930.3,0.93272]
[1688176561604,5.8990042,1930.4,1930.3,0.93272]
[1688176561903,5.90291685,1930.4,1930.3,1.04846638]
[1688176568116,10.55591685,1930.4,1930.3,1.04846638]
[1688176568306,10.55591685,1930.4,1930.3,0.11574638]
[1688176569410,15.55591685,1930.4,1930.3,0.11574638]
[1688176569706,15.55591685,1930.4,1930.3,1e-08]
[1688176569908,15.55591685,1930.4,1929.9,0.78518182]
[1688176570113,4.65,1930.0,1929.9,0.78518182]
[1688176570514,4.65,1930.0,1929.9,1.20488181]
[1688176571019,4.65390514,1930.0,1929.9,1.20488181]
[1688176571418,4.96489514,1930.0,1929.9,1.20488181]
[1688176573616,5.89296934,1930.0,1929.9,1.20488181]
[1688176577123,5.89296934,1930.0,1929.9,1.33865159]
[1688176583233,5.89296934,1930.0,1929.9,0.9189516]
[1688176585038,6.31679238,1930.0,1929.9,0.9189516]
[1688176587736,6.31679238,1930.0,1929.9,1.20566795]
[1688176587933,6.31679238,1930.0,1929.9,0.9189516]
[1688176590350,6.31679238,1930.0,1929.9,1.20566795]
[1688176596438,6.31679238,1930.0,1929.9,0.9189516]
[1688176604050,6.31679238,1930.0,1929.9,1.20566795]
[1688176605053,6.00580238,1930.0,1929.9,1.20566795]
[1688176605460,6.31679238,1930.0,1929.9,0.9189516]
[1688176605957,6.31679238,1930.0,1929.9,1.20566795]
[1688176606146,6.00580238,1930.0,1929.9,1.20566795]
[1688176606749,6.01480238,1930.0,1929.9,1.20566795]
[1688176606955,5.08672818,1930.0,1929.9,1.20566795]
[1688176610658,5.39771818,1930.0,1929.9,1.20566795]
[1688176613960,0.42772818,1930.0,1929.9,1.30966795]
[1688176614161,0.00390514,1930.0,1929.9,5.90592364]
[1688176614365,0.00390514,1930.0,1929.9,10.60969817]
[1688176614963,3.2078,1930.3,1929.9,10.60969817]
[1688176615153,3.2078,1930.3,1930.2,4.94996]
[1688176615353,3.2078,1930.5,1930.2,5.36267635]
[1688176615555,3.2078,1930.5,1930.4,0.31093]
[1688176615757,3.2078,1930.5,1930.4,0.87841412]
[1688176615962,3.21173719,1930.5,1930.4,1.16513047]
[1688176616763,0.00393719,1930.5,1930.4,1.16513047]
[1688176620467,0.00393719,1930.5,1930.4,0.59764635]
[1688176621564,0.31484719,1930.5,1930.4,0.59764635]
[1688176622068,4.98284719,1930.5,1930.4,0.59764635]
[1688176626869,4.67193719,1930.5,1930.4,0.59764635]
[1688176630176,4.98284719,1930.5,1930.4,0.59764635]
[1688176631275,4.98284719,1930.5,1930.4,0.31093]
[1688176641487,4.98284719,1930.5,1930.4,0.59764635]
[1688176643795,4.98284719,1930.5,1930.4,0.31093]
[1688176646598,8.19064719,1930.5,1930.2,11.18242284]
[1688176646788,7.8678,1930.3,1930.2,11.18242284]
[1688176647399,7.8678,1930.3,1930.2,11.46913919]
[1688176647900,7.87171528,1930.3,1930.2,11.46913919]
[1688176648802,7.87171528,1930.3,1930.2,11.18242284]
[1688176649096,7.87171528,1930.3,1930.2,11.46913919]
[1688176650006,7.87171528,1930.3,1930.2,11.18242284]
[1688176651004,7.87171528,1930.3,1930.2,11.46913919]
[1688176654599,8.18265528,1930.3,1930.2,0.93279]
[1688176656908,8.18265528,1930.3,1930.2,1.00088348]
[1688176658300,8.5963113,1930.3,1930.2,1.00088348]
[1688176659905,8.2853713,1930.3,1930.2,1.00088348]
[1688176662101,8.2853713,1930.3,1930.2,1.28759983]
[1688176663408,8.2853713,1930.3,1930.2,1.00088348]
[1688176663606,8.5963113,1930.3,1930.2,1.00088348]
[1688176666507,8.5963113,1930.3,1930.2,1.28759983]
[1688176672014,8.5963113,1930.3,1930.2,1.00088348]
[1688176675525,8.5963113,1930.3,1930.2,0.93279]
[1688176683730,8.5963113,1930.3,1930.2,1.21950635]
[1688176683925,8.5963113,1930.3,1930.2,0.93279]
[1688176687430,8.5963113,1930.3,1930.2,1.21950635]
[1688176689029,8.5963113,1930.3,1930.2,1.32350635]
[1688176689227,3.21171528,1930.3,1930.2,5.94650635]
[1688176690231,0.00391528,1930.3,1930.2,5.94650635]
[1688176691042,8.17871,1930.5,1930.2,5.94650635]
[1688176691332,8.17871,1930.5,1930.2,16.05980635]
[1688176692034,8.17871,1930.5,1930.2,11.43680635]
[1688176692035,4.66391974,1930.4,1930.2,11.43680635]
[1688176693642,4.97484974,1930.4,1930.2,11.43680635]
[1688176697136,4.66391974,1930.4,1930.3,0.87843412]
[1688176700653,4.97484974,1930.4,1930.3,0.87843412]
[1688176700856,5.90292394,1930.4,1930.3,0.87843412]
[1688176701847,5.59199394,1930.4,1930.3,0.87843412]
[1688176702049,0.93199394,1930.4,1930.3,0.87843412]
[1688176705857,0.93199394,1930.4,1930.3,0.98243412]
[1688176706053,0.00391974,1930.4,1930.3,5.64343412]
[1688176706459,0.06882127,1930.4,1930.3,5.64343412]
[1688176707059,0.06882127,1930.4,1930.3,5.53943412]
[1688176707259,0.00391974,1930.4,1930.3,5.53943412]
[1688176709259,0.00391974,1930.4,1930.3,0.31095]
[1688176709454,4.98282974,1930.4,1930.2,0.93279]
[1688176709656,0.31482974,1930.4,1930.3,0.31092]
[1688176709856,9.81972974,1930.4,1930.3,0.31092]
[1688176710159,10.74780394,1930.4,1930.3,0.31092]
[1688176711960,10.74780394,1930.4,1930.1,1.34176744]
[1688176712152,3.2078,1930.3,1930.2,0.77736]
[1688176712457,8.16873,1930.3,1930.2,0.77736]
[1688176712761,9.0968042,1930.3,1930.2,0.77736]
[1688176712954,9.10071338,1930.3,1930.2,0.77736]
[1688176713155,8.78978338,1930.3,1930.2,1.06407635]
[1688176713461,7.86170918,1930.3,1930.2,1.06407635]
[1688176713957,8.17263918,1930.3,1930.2,0.77736]
[1688176716262,8.17263918,1930.3,1930.1,0.71986744]
[1688176716466,13.36013918,1930.3,1930.1,0.71986744]
[1688176716666,14.28821338,1930.3,1930.1,0.71986744]
[1688176717562,5.0,1930.2,1929.9,0.78515182]
[1688176717864,4.97098,1930.0,1929.9,0.31877182]
[1688176718365,5.8990542,1930.0,1929.9,0.31877182]
[1688176718966,5.90295461,1930.0,1929.9,0.31877182]
[1688176721157,5.90295461,1930.0,1929.9,0.72989279]
[1688176721357,5.90295461,1930.0,1929.9,0.31877182]
[1688176727574,9.11075461,1930.0,1929.9,0.31877182]
[1688176727975,9.11075461,1930.0,1929.9,0.44974517]
[1688176729379,9.51899094,1930.0,1929.9,0.44974517]
[1688176737079,9.20801094,1930.0,1929.9,0.84046152]
[1688176737281,8.27993674,1930.0,1929.9,0.84046152]
[1688176737975,8.59092674,1930.0,1929.9,0.84046152]
[1688176738873,0.00390041,1930.0,1929.9,0.84046152]
[1688176739076,5.5880742,1930.3,1930.0,0.56748412]
[1688176739273,4.66,1930.3,1930.2,0.31096]
[1688176739576,4.66,1930.3,1930.2,0.87844412]
[1688176739980,4.66375455,1930.3,1930.2,0.87844412]
[1688176742172,0.00375455,1930.3,1930.2,0.87844412]
[1688176742981,0.00375455,1930.3,1930.2,0.98244412]
[1688176743474,0.00375455,1930.3,1930.2,5.60544412]
[1688176743877,7.8678,1930.6,1930.2,5.60544412]
[1688176744788,8.1787,1930.6,1930.2,5.60544412]
[1688176744982,0.00377845,1930.5,1930.2,5.60544412]
[1688176745282,0.00377845,1930.5,1930.3,0.28671635]
[1688176745479,0.00377845,1930.5,1930.4,0.31093]
[1688176747689,0.00377845,1930.5,1930.4,0.87841412]
[1688176751082,0.93185265,1930.5,1930.4,0.87841412]
[1688176751284,1.24276265,1930.5,1930.4,0.87841412]
[1688176759092,1.24176258,1930.5,1930.4,0.87841412]
[1688176761103,1.2389842,1930.5,1930.4,0.87841412]
[1688176763300,0.31091,1930.5,1930.4,0.87841412]
[1688176763505,1.2389842,1930.5,1930.4,0.87841412]
[1688176766014,1.2389842,1930.5,1930.4,0.31093]
[1688176767414,5.8979842,1930.5,1930.3,0.77733]
[1688176767614,4.65,1930.4,1930.3,0.77733]
[1688176767810,4.96093,1930.4,1930.3,0.77733]
[1688176773413,4.96093,1930.4,1930.2,0.9328]
[1688176773718,4.668,1930.3,1930.2,0.9328]
[1688176774519,4.668,1930.3,1930.2,1.21951635]
[1688176775115,5.42732,1930.5,1930.2,5.88751635]
[1688176775414,6.3553942,1930.5,1930.2,16.11261635]
[1688176782131,4.668,1930.4,1930.2,11.44461635]
[1688176782627,4.97893,1930.4,1930.2,11.44461635]
[1688176783930,4.97893,1930.4,1930.2,1.21951635]
[1688176784630,14.99043,1930.4,1930.2,1.21951635]
[1688176787431,14.99043,1930.4,1930.2,0.9328]
[1688176792036,4.659,1930.3,1930.2,0.9328]
[1688176792235,4.96994,1930.3,1930.2,0.9328]
[1688176792533,5.08094,1930.3,1930.0,1.34460609]
[1688176792726,4.65,1930.1,1930.0,1.34460609]
[1688176792925,4.96098,1930.1,1930.0,1.34460609]
[1688176793734,5.8890542,1930.1,1930.0,1.34460609]
[1688176799445,5.8890542,1930.1,1930.0,1.48246169]
[1688176800647,5.8890542,1930.1,1930.0,1.0707656]
[1688176805251,5.8890542,1930.1,1930.0,0.4488456]
[1688176805558,5.8890542,1930.1,1930.0,0.1378556]
[1688176805949,5.8890542,1930.1,1930.0,0.21653884]
[1688176809251,5.9910542,1930.1,1930.0,0.21653884]
[1688176810355,5.8890542,1930.1,1930.0,0.52752884]
[1688176813062,5.8890542,1930.1,1930.0,0.81424519]
[1688176813761,5.8890542,1930.1,1930.0,0.52752884]
[1688176822364,5.8890542,1930.1,1930.0,0.81424519]
[1688176822561,5.5880742,1930.1,1930.0,0.91824519]
[1688176822765,4.66,1930.1,1930.0,0.91824519]
[1688176823671,3.63095363,1930.2,1930.0,0.91824519]
[1688176823861,5.44543,1930.3,1930.1,0.56748412]
[1688176824052,5.44543,1930.3,1930.2,0.59767635]
[1688176824257,5.44543,1930.3,1930.2,0.76985127]
[1688176826361,4.4468342,1930.4,1930.2,0.87385127]
[1688176826362,0.9280742,1930.4,1930.2,0.87385127]
[1688176826562,5.37477733,1930.5,1930.4,0.31092]
[1688176826868,5.37477733,1930.5,1930.4,0.59763635]
[1688176827072,0.71577733,1930.5,1930.4,0.70314079]
[1688176828260,0.40486733,1930.5,1930.4,5.44614079]
[1688176828463,9.0967642,1930.8,1930.6,0.104]
[1688176828666,8.16869,1930.8,1930.7,1.16507047]
[1688176829264,8.18669,1930.8,1930.7,1.16507047]
[1688176829463,8.60075893,1930.8,1930.7,1.16507047]
[1688176831567,3.93275893,1930.8,1930.7,1.16507047]
[1688176839489,8.18641115,1931.0,1930.7,5.90807047]
[1688176839785,3.21556115,1931.0,1930.9,4.743]
[1688176839984,0.00776115,1931.0,1930.9,5.90803047]
[1688176840987,0.25411795,1931.0,1930.9,5.93003047]
[1688176842088,0.25411795,1931.0,1930.9,5.93703047]
[1688176845490,5.21492795,1931.0,1930.9,0.31083]
[1688176845686,5.1484114,1931.0,1930.9,0.31083]
[1688176847695,8.3562114,1931.0,1930.9,0.31083]
[1688176847899,9.2842856,1931.0,1930.9,0.31083]
[1688176848091,9.2842856,1931.0,1930.9,0.59754635]
[1688176848284,6.08000167,1931.0,1930.9,0.59754635]
[1688176848597,5.1484114,1931.0,1930.9,0.59754635]
[1688176852099,8.3652114,1931.0,1930.9,0.59754635]
[1688176852297,9.29680036,1931.0,1930.9,0.59754635]
[1688176854802,9.29680036,1931.0,1930.9,0.31083]
[1688176856401,9.29680036,1931.0,1930.9,0.59754635]
[1688176857703,9.29680036,1931.0,1930.9,0.31082]
[1688176861003,9.29680036,1931.0,1930.7,0.77707]
[1688176861197,9.2279861,1931.0,1930.7,0.77707]
[1688176861805,4.66,1930.8,1930.7,0.77707]
[1688176862008,4.97086,1930.8,1930.7,0.77707]
[1688176862205,5.08106767,1930.8,1930.7,0.77707]
[1688176862407,8.28886767,1930.8,1930.7,0.77707]
[1688176864505,3.62886767,1930.8,1930.7,0.77707]
[1688176867714,3.62886767,1930.8,1930.7,1.06378635]
[1688176870518,3.62886767,1930.8,1930.7,0.77707]
[1688176871320,3.62886767,1930.8,1930.7,1.06378635]
[1688176872125,3.62886767,1930.8,1930.7,0.77707]
[1688176875226,3.62886767,1930.8,1930.7,1.06378635]
[1688176875523,3.62886767,1930.8,1930.7,0.77707]